bitfinex-derivatives/quotes_BNBF0:USTF0_20250401
["timestamp","ask_amount","ask_price","bid_price","bid_amount"]
[1743519650332,0.28322156,614.81,614.16,0.26736842]
[1743519650532,0.28322156,614.81,614.17,0.26736842]
[1743519650733,0.28322156,614.81,614.18,0.26736842]
[1743519650932,0.28322156,614.81,614.19,0.26736842]
[1743519651131,0.28322156,614.81,614.2,0.26736842]
[1743519651327,0.28322156,614.81,614.21,0.26736842]
[1743519651633,0.28322156,614.81,614.22,0.26736842]
[1743519651932,0.28322156,614.81,614.23,0.26736842]
[1743519652133,0.28322156,614.81,614.24,0.26736842]
[1743519652332,0.28322156,614.81,613.79,0.26736842]
[1743519652632,0.28322156,614.81,613.78,0.516]
[1743519652834,0.28322156,614.81,613.79,0.26729312]
[1743519653034,0.28322156,614.81,613.8,0.26729312]
[1743519653233,0.28322156,614.81,613.81,0.26729312]
[1743519653533,0.28322156,614.81,613.78,0.516]
[1743519653534,0.28322156,614.81,613.82,0.26729312]
[1743519653728,0.28322156,614.81,613.81,0.245]
[1743519653930,0.28322156,614.81,613.82,0.26729312]
[1743519654732,0.32529846,614.82,613.82,0.26729312]
[1743519655236,0.28322733,614.8,613.83,0.26729312]
[1743519655530,0.28322733,614.8,613.84,0.26729312]
[1743519655730,0.28322733,614.8,613.85,0.26729312]
[1743519655940,0.28322733,614.8,613.86,0.26729312]
[1743519656235,0.28322733,614.8,613.87,0.26729312]
[1743519656531,0.28322733,614.8,613.88,0.26729312]
[1743519656730,0.28322733,614.8,613.89,0.26729312]
[1743519657035,0.28322733,614.8,613.81,0.245]
[1743519657036,0.28322733,614.8,613.9,0.26729312]
[1743519657233,0.28322733,614.8,613.91,0.26729312]
[1743519657432,0.32529846,614.82,613.92,0.26729312]
[1743519657628,0.32529846,614.82,613.93,0.26729312]
[1743519657835,0.32529846,614.82,613.94,0.26729312]
[1743519658030,0.32529846,614.82,613.95,0.26729312]
[1743519658236,0.32529846,614.82,613.96,0.26729312]
[1743519658535,0.32529846,614.82,613.97,0.26729312]
[1743519658735,0.32529846,614.82,613.98,0.26729312]
[1743519659037,0.32529846,614.82,613.99,0.26729312]
[1743519659236,0.32529846,614.82,614.0,0.26729312]
[1743519659433,0.32529846,614.82,613.81,0.245]
[1743519659732,0.32529846,614.82,613.82,0.59296065]
[1743519659936,0.32529846,614.82,613.83,0.26713224]
[1743519660138,0.72229846,614.82,613.84,0.26713224]
[1743519660337,0.72229846,614.82,613.85,0.26713224]
[1743519660638,0.72229846,614.82,613.82,0.32582841]
[1743519660639,0.72229846,614.82,613.86,0.26713224]
[1743519660840,0.72229846,614.82,613.82,0.32582841]
[1743519661233,0.397,614.82,613.83,0.26707851]
[1743519661437,0.397,614.82,613.84,0.26707851]
[1743519661741,0.397,614.82,613.85,0.26707851]
[1743519662033,0.397,614.82,613.86,0.26707851]
[1743519662238,0.397,614.82,613.87,0.26707851]
[1743519662433,0.397,614.82,613.88,0.26707851]
[1743519662633,0.397,614.82,613.89,0.26707851]
[1743519662833,0.397,614.82,613.9,0.26707851]
[1743519663037,0.397,614.82,613.91,0.26707851]
[1743519663234,0.397,614.82,613.92,0.26707851]
[1743519663438,0.397,614.82,613.93,0.26707851]
[1743519663638,0.397,614.82,613.94,0.26707851]
[1743519663836,0.397,614.82,613.95,0.26707851]
[1743519664040,0.397,614.82,613.96,0.26707851]
[1743519664241,0.397,614.82,613.97,0.26707851]
[1743519664541,0.397,614.82,613.98,0.26707851]
[1743519664742,0.397,614.82,613.99,0.26707851]
[1743519665043,0.397,614.82,614.0,0.26707851]
[1743519665241,0.397,614.82,614.01,0.26707851]
[1743519665435,0.397,614.82,614.01,0.562]
[1743519665643,0.397,614.82,614.02,0.2669689]
[1743519665937,0.397,614.82,614.03,0.2669689]
[1743519666144,0.397,614.82,614.01,0.562]
[1743519666145,0.397,614.82,614.04,0.2669689]
[1743519666341,0.397,614.82,614.05,0.2669689]
[1743519666643,0.397,614.82,614.06,0.2669689]
[1743519666942,0.397,614.82,614.07,0.2669689]
[1743519667142,0.397,614.82,614.08,0.26679708]
[1743519667338,0.397,614.82,614.09,0.26679708]
[1743519667540,0.397,614.82,614.1,0.26679708]
[1743519667738,0.397,614.82,614.11,0.26679708]
[1743519667940,0.397,614.82,614.12,0.26679708]
[1743519668142,0.397,614.82,614.13,0.26679708]
[1743519668338,0.397,614.82,614.14,0.26679708]
[1743519668540,0.397,614.82,614.15,0.26679708]
[1743519668742,0.397,614.82,614.16,0.26679708]
[1743519668943,0.397,614.82,614.17,0.26679708]
[1743519669137,0.397,614.82,614.18,0.26679708]
[1743519669343,0.397,614.82,614.19,0.26679708]
[1743519669543,0.397,614.82,614.2,0.26679708]
[1743519669745,0.397,614.82,614.21,0.26679708]
[1743519669942,0.397,614.82,614.22,0.26679708]
[1743519670145,0.397,614.82,614.23,0.26679708]
[1743519670345,0.397,614.82,614.24,0.26679708]
[1743519670541,0.397,614.82,614.25,0.26679708]
[1743519670745,0.397,614.82,614.26,0.26679708]
[1743519670945,0.397,614.82,614.27,0.26679708]
[1743519671248,0.397,614.82,614.28,0.26679708]
[1743519671444,0.397,614.82,614.29,0.26679708]
[1743519671746,0.397,614.82,614.3,0.26679708]
[1743519671942,0.397,614.82,614.31,0.26691853]
[1743519672142,0.397,614.82,614.32,0.26691853]
[1743519672446,0.397,614.82,614.33,0.26691853]
[1743519672746,0.397,614.82,614.34,0.26691853]
[1743519673048,0.397,614.82,614.35,0.26691853]
[1743519673240,0.397,614.82,614.01,0.562]
[1743519673241,0.397,614.82,614.36,0.26691853]
[1743519673443,0.397,614.82,614.37,0.26691853]
[1743519673643,0.397,614.82,614.38,0.26691853]
[1743519673843,0.397,614.82,614.39,0.26691853]
[1743519674045,0.397,614.82,614.4,0.26687838]
[1743519674242,0.397,614.82,614.41,0.26687838]
[1743519674439,0.397,614.82,614.42,0.26687838]
[1743519674644,0.397,614.82,614.43,0.26687838]
[1743519674844,0.397,614.82,614.44,0.26687838]
[1743519675043,0.397,614.82,614.45,0.26687838]
[1743519675248,0.397,614.82,614.01,0.562]
[1743519675447,0.397,614.82,614.02,0.2668359]
[1743519675647,0.397,614.82,614.03,0.59255288]
[1743519675848,0.397,614.82,614.04,0.59254758]
[1743519676049,0.397,614.82,614.05,0.59254227]
[1743519676248,0.397,614.82,614.06,0.32570107]
[1743519676547,0.397,614.82,614.07,0.2668359]
[1743519676741,0.397,614.82,614.08,0.2668359]
[1743519676946,0.397,614.82,614.09,0.2668359]
[1743519677147,0.397,614.82,614.1,0.2668359]
[1743519677341,0.397,614.82,614.11,0.59251045]
[1743519677545,0.397,614.82,614.12,0.2668359]
[1743519677747,0.397,614.82,614.13,0.2668359]
[1743519677943,0.397,614.82,614.14,0.2668359]
[1743519678244,0.397,614.82,614.15,0.2668359]
[1743519678452,0.397,614.82,614.16,0.2668359]
[1743519678650,0.397,614.82,614.17,0.2668359]
[1743519678851,0.397,614.82,614.18,0.2668359]
[1743519679150,1.60629435,615.77,614.19,0.2668359]
[1743519679349,0.28297859,615.15,614.2,0.2668359]
[1743519679546,1.60629435,615.76,614.21,0.2668359]
[1743519679751,1.60629435,615.74,614.22,0.2668359]
[1743519679946,7.5063745,615.73,614.11,0.32567455]
[1743519680150,4.86792477,615.72,614.12,0.26697633]
[1743519680351,4.86792477,615.71,614.13,0.26697633]
[1743519680549,4.86792477,615.7,614.14,0.26697633]
[1743519680750,4.86792477,615.69,614.15,0.26697633]
[1743519680951,4.86792477,615.68,614.16,0.26697633]
[1743519681147,4.86792477,615.67,614.17,0.26697633]
[1743519681449,4.86792477,615.66,614.11,0.32567455]
[1743519681649,4.4322802,615.67,614.11,0.32567455]
[1743519681650,10.14706487,615.65,614.12,0.26696945]
[1743519681850,0.32487045,615.63,614.13,0.26696945]
[1743519682053,4.86792477,615.62,614.14,0.26696945]
[1743519682254,4.86792477,615.61,614.15,0.26696945]
[1743519682452,4.86792477,615.6,614.16,0.26696945]
[1743519682653,4.86792477,615.59,614.17,0.26696945]
[1743519682847,4.86792477,615.58,614.18,0.26696945]
[1743519683051,4.86792477,615.57,614.11,0.32567455]
[1743519683249,4.86792477,615.56,614.12,0.26691307]
[1743519683468,4.86792477,615.55,614.13,0.26691307]
[1743519683761,4.86792477,615.54,614.14,0.26691307]
[1743519683958,4.86792477,615.53,614.15,0.26691307]
[1743519684157,4.86792477,615.52,614.16,0.26691307]
[1743519684462,4.21886814,615.51,614.17,0.26691307]
[1743519684659,4.21844114,615.5,614.13,0.245]
[1743519684858,4.21844114,615.49,614.14,0.26687802]
[1743519685163,4.21844114,615.48,614.15,0.26687802]
[1743519685365,4.21844114,615.47,614.16,0.26687802]
[1743519685559,4.21844114,615.46,614.17,0.26687802]
[1743519685765,4.54340661,615.45,614.18,0.26687802]
[1743519685963,4.54341189,615.44,614.19,0.26687802]
[1743519686160,4.54344683,615.43,614.2,0.26687802]
[1743519686365,1.62247736,615.42,614.21,0.26687802]
[1743519686567,1.94746395,615.41,614.22,0.26687802]
[1743519686765,1.94746923,615.4,614.23,0.26687802]
[1743519686966,1.62247736,615.39,614.24,0.26687802]
[1743519687165,1.62247736,615.38,614.25,0.26687802]
[1743519687360,1.62247736,615.37,614.26,0.26687802]
[1743519687564,1.62247736,615.36,614.27,0.26687802]
[1743519687761,1.62247736,615.35,614.28,0.26687802]
[1743519687961,1.62247736,615.34,614.29,0.26687085]
[1743519688164,0.32499187,615.4,614.3,0.26687085]
[1743519688364,1.6224664,615.39,614.31,0.26687085]
[1743519688561,1.6224664,615.38,614.32,0.26687085]
[1743519688765,1.62246104,615.37,614.33,0.26687085]
[1743519688967,1.62248248,615.36,614.34,0.26687085]
[1743519689266,0.32499187,615.4,614.35,0.26687085]
[1743519689467,1.62248661,615.39,614.36,0.26685526]
[1743519689762,0.32499187,615.4,614.13,0.245]
[1743519689763,1.62248661,615.38,614.37,0.26685526]
[1743519690068,0.32499187,615.4,614.38,0.26685526]
[1743519690069,1.62248661,615.37,614.38,0.26685526]
[1743519690264,1.62248661,615.36,614.39,0.26685526]
[1743519690465,0.32499187,615.4,614.4,0.26685526]
[1743519690665,1.62245404,615.39,614.41,0.26685526]
[1743519690863,1.62245404,615.38,614.42,0.26685526]
[1743519691060,1.62245404,615.37,614.43,0.26685526]
[1743519691263,0.32499187,615.4,614.44,0.26685526]
[1743519691462,1.62244804,615.39,614.44,0.26685526]
[1743519691665,1.62244804,615.38,614.45,0.26685526]
[1743519691866,1.62244804,615.37,614.46,0.26685526]
[1743519692073,1.62244804,615.36,614.47,0.26685526]
[1743519692369,1.62248928,615.35,614.48,0.26685526]
[1743519692576,1.62248928,615.34,614.13,0.245]
[1743519692873,0.28301081,615.38,614.14,0.26687878]
[1743519693074,1.62250658,615.37,614.15,0.26687878]
[1743519693274,1.62250658,615.36,614.16,0.26687878]
[1743519693472,1.62250658,615.35,614.17,0.26687878]
[1743519693668,1.62250658,615.34,614.18,0.26687878]
[1743519693969,1.94753542,615.33,614.19,0.26687878]
[1743519694173,1.9475407,615.32,614.2,0.26687878]
[1743519694374,0.32503941,615.31,614.21,0.26687878]
[1743519694573,0.32503941,615.31,614.22,0.26687878]
[1743519694770,0.6080813,615.31,614.23,0.26687878]
[1743519694970,0.6080813,615.31,614.24,0.26687878]
[1743519695173,0.6080813,615.31,614.25,0.26687878]
[1743519695369,0.6080813,615.31,614.26,0.26687878]
[1743519695573,0.6080813,615.31,614.27,0.26687878]
[1743519695769,0.6080813,615.31,614.28,0.26687878]
[1743519695972,0.6080813,615.31,614.13,0.245]
[1743519695973,0.6080813,615.31,614.29,0.26687878]
[1743519696370,0.6080813,615.31,614.3,0.26687878]
[1743519696573,0.6080813,615.31,614.31,0.26687878]
[1743519696776,0.32503941,615.31,614.32,0.26687878]
[1743519696973,0.32503941,615.31,614.33,0.26687878]
[1743519697170,0.32503941,615.31,614.34,0.26687878]
[1743519697474,0.32503941,615.31,614.35,0.7728648]
[1743519697675,0.32503941,615.31,614.36,0.2668648]
[1743519697871,0.32503941,615.31,614.37,0.2668648]
[1743519698073,0.28295328,615.3,614.38,0.2668648]
[1743519698270,0.28295328,615.3,614.39,0.2668648]
[1743519698573,0.28295328,615.3,614.4,0.2668648]
[1743519698777,0.28295328,615.3,614.41,0.2668648]
[1743519698980,0.28295328,615.3,614.42,0.2668648]
[1743519699178,0.28295328,615.3,614.43,0.2668648]
[1743519699373,0.28295328,615.3,614.44,0.2668648]
[1743519699574,0.28295328,615.3,614.45,0.2668648]
[1743519699771,0.32503941,615.31,614.46,0.2668648]
[1743519699975,0.32503941,615.31,614.47,0.2668648]
[1743519700173,0.32503941,615.31,614.48,0.2668648]
[1743519700377,0.32503941,615.31,614.35,0.506]
[1743519700378,0.32503941,615.31,614.49,0.2668648]
[1743519700577,0.32503941,615.31,614.5,0.2668648]
[1743519700777,0.32503941,615.31,614.51,0.2668648]
[1743519701080,0.28296019,615.3,614.52,0.2668648]
[1743519701379,0.28296019,615.3,614.53,0.2668648]
[1743519701573,0.28296019,615.3,614.54,0.2668648]
[1743519701778,0.28296019,615.3,614.55,0.2668648]
[1743519702077,0.28296019,615.3,614.56,0.2668648]
[1743519702277,0.28296019,615.3,614.57,0.2668648]
[1743519702475,0.28296019,615.3,614.58,0.2668648]
[1743519702675,0.32503941,615.31,614.59,0.2668648]
[1743519702875,0.32503941,615.31,614.6,0.2668648]
[1743519703071,0.32503941,615.31,614.61,0.2668648]
[1743519703272,0.32503941,615.31,614.62,0.2668648]
[1743519703473,0.32503941,615.31,614.52,0.245]
[1743519703474,0.28297169,615.3,614.63,0.2668648]
[1743519703676,0.28297169,615.3,614.64,0.2668648]
[1743519703876,0.28297169,615.3,614.65,0.2668648]
[1743519704071,0.28297169,615.3,614.66,0.2668648]
[1743519704274,0.28297169,615.3,614.53,0.2668648]
[1743519704479,0.28297169,615.3,614.54,0.2668648]
[1743519704675,0.28297169,615.3,614.55,0.2668648]
[1743519704879,0.28297169,615.3,614.56,0.2668648]
[1743519705081,0.28297169,615.3,614.53,0.2668648]
[1743519705382,0.28297169,615.3,614.54,0.26690863]
[1743519705580,0.28297169,615.3,614.53,0.26690863]
[1743519705772,0.32504997,615.29,614.54,0.26690863]
[1743519705973,0.32504997,615.29,614.53,0.26690863]
[1743519706173,0.32504997,615.29,614.55,0.26690863]
[1743519706372,0.32504997,615.29,614.56,0.26690863]
[1743519706578,0.32504997,615.29,614.57,0.26690863]
[1743519706980,0.32504997,615.29,614.58,0.26690863]
[1743519707181,0.32504997,615.29,614.59,0.26690863]
[1743519707480,0.32504997,615.29,614.6,0.26690863]
[1743519707680,0.32504997,615.29,614.61,0.26690863]
[1743519707876,0.32504997,615.29,614.62,0.26690863]
[1743519708085,0.32504997,615.29,614.63,0.26690863]
[1743519708276,0.32504997,615.29,614.52,0.245]
[1743519708483,0.4,615.28,614.53,0.26702607]
[1743519708684,0.32506054,615.27,614.54,0.26702607]
[1743519708985,0.32506054,615.27,614.55,0.26702607]
[1743519709284,0.32506054,615.27,614.56,0.26702607]
[1743519709484,0.32506054,615.27,614.57,0.26702607]
[1743519709684,0.32506054,615.27,614.58,0.26702607]
[1743519709887,0.32506054,615.27,614.53,0.26702607]
[1743519710087,0.32506054,615.27,614.54,0.26702607]
[1743519710279,0.32506054,615.27,614.55,0.26702607]
[1743519710479,0.32506054,615.27,614.56,0.26702607]
[1743519710683,0.32506054,615.27,614.52,0.245]
[1743519710684,0.32506054,615.27,614.57,0.26702607]
[1743519710981,0.32506054,615.27,614.58,0.26702607]
[1743519711186,0.32506054,615.27,614.59,0.26702607]
[1743519711388,0.32506054,615.27,614.6,0.26702607]
[1743519711587,0.32506054,615.27,614.61,0.26702607]
[1743519711780,0.32506054,615.27,614.62,0.26702607]
[1743519711979,0.28303038,615.26,614.63,0.26702607]
[1743519712187,0.28303038,615.26,614.64,0.26702607]
[1743519712386,0.28303038,615.26,614.65,0.26702607]
[1743519712587,0.28303038,615.26,614.66,0.26702607]
[1743519712787,0.28303038,615.26,614.67,0.26702607]
[1743519712988,0.28303038,615.26,614.68,0.26702607]
[1743519713189,0.28303038,615.26,614.69,0.26702607]
[1743519713389,0.28303038,615.26,614.7,0.26702607]
[1743519713589,0.28303038,615.26,614.71,0.26702607]
[1743519713785,0.28303038,615.26,614.35,0.506]
[1743519713786,0.28303038,615.26,614.72,0.26702607]
[1743519713990,0.28303038,615.26,614.73,0.26702607]
[1743519714193,0.3250711,615.25,614.74,0.26702607]
[1743519714387,0.3250711,615.25,614.36,0.26702607]
[1743519714691,0.3250711,615.25,614.37,0.26707296]
[1743519714990,0.3250711,615.25,614.38,0.26707296]
[1743519715291,0.3250711,615.25,614.35,0.506]
[1743519715292,0.3250711,615.25,614.39,0.26707296]
[1743519715487,0.3250711,615.25,614.4,0.26707296]
[1743519715692,0.3250711,615.25,614.41,0.26707296]
[1743519715889,0.28303498,615.24,614.42,0.26707296]
[1743519716094,0.28303498,615.24,614.43,0.26707296]
[1743519716294,0.28303498,615.24,614.44,0.26715313]
[1743519716490,0.28303498,615.24,614.45,0.26715313]
[1743519716789,0.28303498,615.24,614.46,0.26715313]
[1743519716996,0.28303498,615.24,614.47,0.26715313]
[1743519717196,0.32508167,615.23,614.48,0.26715313]
[1743519717495,0.32508167,615.23,614.49,0.26715313]
[1743519717693,0.32508167,615.23,614.47,0.245]
[1743519717888,0.32508167,615.23,614.48,0.26726586]
[1743519718091,0.32508167,615.23,614.49,0.26726586]
[1743519718293,0.32508167,615.23,614.5,0.26726586]
[1743519718487,0.32508167,615.23,614.51,0.26726586]
[1743519718790,0.32508167,615.23,614.47,0.245]
[1743519718791,0.32508167,615.23,614.52,0.26726586]
[1743519718994,0.28305915,615.22,614.53,0.26726586]
[1743519719193,0.28305915,615.22,614.54,0.26726586]
[1743519719393,0.28305915,615.22,614.55,0.26730539]
[1743519719593,0.28305915,615.22,614.56,0.26730539]
[1743519719794,0.28305915,615.22,614.57,0.26730539]
[1743519719995,0.28305915,615.22,614.58,0.26730539]
[1743519720294,0.28305915,615.22,614.59,0.26730539]
[1743519720488,0.28305915,615.22,614.6,0.26730539]
[1743519720689,0.28305915,615.22,614.57,0.26730539]
[1743519720888,0.28305915,615.22,614.58,0.26730539]
[1743519721091,0.28305915,615.22,614.59,0.26730539]
[1743519721292,0.32509224,615.21,614.6,0.26730539]
[1743519721491,0.32509224,615.21,614.61,0.26730539]
[1743519721796,0.32509224,615.21,614.62,0.26730539]
[1743519722093,0.32509224,615.21,614.63,0.26730539]
[1743519722296,0.32509224,615.21,614.57,0.26730539]
[1743519722491,0.32509224,615.21,614.56,0.517]
[1743519722492,0.32509224,615.21,614.58,0.26730539]
[1743519722688,0.32509224,615.21,614.59,0.26730539]
[1743519722891,0.32509224,615.21,614.6,0.26730539]
[1743519723090,0.32509224,615.21,614.57,0.26730539]
[1743519723297,0.32509224,615.21,614.58,0.26730539]
[1743519723591,0.32509224,615.21,614.59,0.26730539]
[1743519723792,0.32509224,615.21,614.6,0.26733943]
[1743519723996,0.32509224,615.21,614.57,0.26733943]
[1743519724190,0.32509224,615.21,614.58,0.26734284]
[1743519724391,1.62324831,615.2,614.57,0.26734284]
[1743519724595,1.94835112,615.19,614.58,0.26734284]
[1743519724791,1.9483564,615.18,614.57,0.26734284]
[1743519725094,4.22086545,615.17,614.58,0.26734284]
[1743519725398,8.03214722,615.16,614.59,0.26782586]
[1743519725597,4.22086545,615.15,614.57,0.26782586]
[1743519725797,4.22086545,615.14,614.58,0.26782586]
[1743519726098,4.22127181,615.13,614.59,0.26782586]
[1743519726298,4.22127181,615.12,614.57,0.26782586]
[1743519726495,1.62324831,615.11,614.58,0.26782586]
[1743519726692,1.62324831,615.11,614.56,0.517]
[1743519726693,1.94839869,615.1,614.59,0.26782586]
[1743519726892,1.94839869,615.1,614.56,0.517]
[1743519726893,1.62324831,615.09,614.56,0.517]
[1743519727201,1.62324831,615.08,614.57,0.26790641]
[1743519727498,1.62324831,615.07,614.57,0.26790641]
[1743519727692,1.62324831,615.06,614.57,0.26790641]
[1743519727892,1.62324831,615.05,614.57,0.26790641]
[1743519728092,1.74884137,615.07,614.57,0.26790641]
[1743519728093,1.62324831,615.04,614.57,0.26790641]
[1743519728297,1.62324831,615.03,614.57,0.26790641]
[1743519728503,1.62324831,615.02,614.57,0.26790641]
[1743519728698,0.3251821,615.04,614.57,0.26790641]
[1743519728699,1.94844627,615.01,614.57,0.26790641]
[1743519728995,1.94845156,615.0,614.57,0.26790641]
[1743519729198,0.32520853,614.99,614.57,0.26790641]
[1743519730294,0.28311903,614.98,614.57,0.26790641]
[1743519730499,0.32521911,614.97,614.57,0.26790641]
[1743519731400,1.62399968,614.96,614.57,0.26790641]
[1743519731604,0.32521911,614.97,614.56,0.517]
[1743519731605,1.62399968,614.95,614.56,0.517]
[1743519731794,1.62399968,614.94,614.57,0.26796323]
[1743519732101,0.32521911,614.97,614.57,0.26796323]
[1743519732496,0.32521911,614.97,614.58,0.26796323]
[1743519732695,0.32521911,614.97,614.59,0.26796323]
[1743519733001,0.28311212,614.96,614.6,0.26796323]
[1743519733394,0.28311212,614.96,614.61,0.26796323]
[1743519733600,0.28311212,614.96,614.62,0.26796323]
[1743519733896,0.28311212,614.96,614.63,0.26796323]
[1743519734099,0.28311212,614.96,614.64,0.26796323]
[1743519734301,0.28311212,614.96,614.65,0.26796323]
[1743519734601,0.28311212,614.96,614.66,0.26796323]
[1743519734801,0.28311212,614.96,614.67,0.26761679]
[1743519735100,0.28311212,614.96,614.68,0.26761679]
[1743519735298,0.28311212,614.96,614.69,0.26761679]
[1743519735496,0.28311212,614.96,614.57,0.26761679]
[1743519735696,0.28311212,614.96,614.58,0.26761679]
[1743519735901,0.28311212,614.96,614.59,0.26761679]
[1743519736102,0.28311212,614.96,614.57,0.26761679]
[1743519736298,0.28311212,614.96,614.58,0.26763001]
[1743519736602,0.28311212,614.96,614.59,0.26763001]
[1743519736804,0.28311212,614.96,614.57,0.26763001]
[1743519737003,0.28311212,614.96,614.58,0.26763001]
[1743519737199,0.28311212,614.96,614.56,0.517]
[1743519737200,0.28311212,614.96,614.59,0.26763001]
[1743519737400,0.28311212,614.96,614.6,0.26763001]
[1743519737602,0.28311212,614.96,614.61,0.26763001]
[1743519737802,0.28311212,614.96,614.56,0.517]
[1743519738005,0.28311212,614.96,614.57,0.2676491]
[1743519738196,0.28311212,614.96,614.58,0.26766667]
[1743519738401,0.28311212,614.96,614.59,0.26766667]
[1743519738703,0.32521911,614.97,614.6,0.26766667]
[1743519738904,0.32521911,614.97,614.57,0.26766667]
[1743519739106,0.28310175,614.95,614.58,0.26766667]
[1743519739304,0.28310175,614.95,614.48,0.26766667]
[1743519739506,0.28310175,614.95,614.49,0.26766667]
[1743519739700,0.28310175,614.95,614.48,0.26766667]
[1743519739902,0.28310175,614.95,614.49,0.26766667]
[1743519740102,0.28310175,614.95,614.48,0.26766667]
[1743519740304,0.28310175,614.95,614.49,0.26766667]
[1743519740503,0.74510175,614.95,614.5,0.26766667]
[1743519740699,0.74510175,614.95,613.46,0.26766667]
[1743519741006,0.74510175,614.95,613.48,0.32600899]
[1743519741199,0.74510175,614.95,613.49,0.26790647]
[1743519741402,0.74510175,614.95,613.5,0.26790647]
[1743519741605,0.74510175,614.95,613.51,0.26790647]
[1743519741801,0.74510175,614.95,613.52,0.26790647]
[1743519742003,0.74510175,614.95,613.45,0.28310175]
[1743519742004,0.74510175,614.95,613.54,0.32597711]
[1743519742200,0.74510175,614.95,613.55,0.26790647]
[1743519742603,0.74510175,614.95,613.56,0.59387296]
[1743519742803,0.74510175,614.95,613.57,0.59386764]
[1743519743006,0.74510175,614.95,613.58,0.59386233]
[1743519743305,0.74510175,614.95,613.59,0.59385702]
[1743519743601,0.74510175,614.95,613.6,0.59385171]
[1743519743801,0.32523498,614.94,613.61,0.59384639]
[1743519744005,0.32523498,614.94,613.62,0.59384108]
[1743519744201,0.32523498,614.94,613.63,0.59383577]
[1743519744402,0.32523498,614.94,613.64,0.59383046]
[1743519744602,0.32523498,614.94,613.65,0.59382515]
[1743519744907,0.32523498,614.94,613.66,0.59381984]
[1743519745108,0.32523498,614.94,613.67,0.59381453]
[1743519745408,0.2832158,614.93,613.68,0.26790647]
[1743519745603,0.32524556,614.92,613.68,0.26790647]
[1743519745908,0.32524556,614.92,613.69,0.26790647]
[1743519746607,0.32524556,614.92,613.7,0.26790647]
[1743519746803,0.32524556,614.92,613.71,0.26790647]
[1743519747004,0.32524556,614.92,613.72,0.26790647]
[1743519747202,0.32524556,614.92,613.67,0.32590806]
[1743519747406,0.32524556,614.92,613.68,0.26797293]
[1743519747605,0.32524556,614.92,613.69,0.26797293]
[1743519747803,0.32524556,614.92,613.7,0.26797293]
[1743519748003,0.32524556,614.92,613.71,0.26797293]
[1743519748215,0.28323424,614.91,613.72,0.26797293]
[1743519748410,0.28323424,614.91,613.67,0.32590806]
[1743519748411,0.28323424,614.91,613.73,0.26797293]
[1743519748704,0.28323424,614.91,613.67,0.32590806]
[1743519748905,0.28323424,614.91,613.74,0.26802354]
[1743519749110,0.28323424,614.91,613.75,0.26802354]
[1743519749307,0.28323424,614.91,613.76,0.26802354]
[1743519749509,0.28323424,614.91,613.77,0.26802354]
[1743519749709,0.28323424,614.91,613.67,0.32590806]
[1743519749710,0.28323424,614.91,613.78,0.26802354]
[1743519749906,0.28323424,614.91,613.79,0.26802354]
[1743519750110,0.28323424,614.91,613.8,0.26802354]
[1743519750309,0.32525613,614.9,613.67,0.32590806]
[1743519750511,0.32525613,614.9,613.68,0.2680721]
[1743519750707,0.32525613,614.9,613.69,0.2680721]
[1743519750909,0.32525613,614.9,613.7,0.2680721]
[1743519751108,0.28323424,614.89,613.71,0.2680721]
[1743519751310,0.28323424,614.89,613.72,0.2680721]
[1743519751607,0.28323424,614.89,613.73,0.2680721]
[1743519751811,0.28323424,614.89,613.74,0.2680721]
[1743519752012,0.28323424,614.89,613.75,0.26805618]
[1743519752312,0.28323424,614.89,613.76,0.26805618]
[1743519752513,0.28323424,614.89,613.77,0.26805618]
[1743519752710,0.28323424,614.89,613.78,0.26805618]
[1743519753012,0.28323424,614.89,613.79,0.26805618]
[1743519753214,0.28323424,614.89,613.8,0.26805618]
[1743519753416,0.28323424,614.89,613.67,0.32590806]
[1743519753715,0.28323424,614.89,613.68,0.26803812]
[1743519753910,0.28323424,614.89,613.69,0.59393556]
[1743519754115,0.28323424,614.89,613.7,0.59393024]
[1743519754310,0.28323424,614.89,613.71,0.59392493]
[1743519754514,0.28323424,614.89,613.72,0.59391962]
[1743519754715,0.28323424,614.89,613.59,0.245]
[1743519754716,0.28323424,614.89,613.73,0.59391431]
[1743519754913,0.28323424,614.89,613.74,0.593909]
[1743519755114,0.28323424,614.89,613.75,0.5939037]
[1743519755313,0.28323424,614.89,613.76,0.26803812]
[1743519755511,0.28323424,614.89,613.77,0.26803812]
[1743519755716,0.28323424,614.89,613.78,0.26803812]
[1743519756011,0.28323424,614.89,613.79,0.26803812]
[1743519756216,0.28323424,614.89,613.8,0.26803812]
[1743519756416,0.28323424,614.89,613.81,0.26803812]
[1743519756612,0.28323424,614.89,613.82,0.26803812]
[1743519756819,0.28323424,614.89,613.83,0.26803812]
[1743519757013,0.28323424,614.89,613.84,0.26803812]
[1743519757221,0.28323424,614.89,613.85,0.26803812]
[1743519757615,0.28323424,614.89,613.86,0.26803812]